[Event "8th RTU Open 2018"]
[Site "Riga"]
[Date "2018.08.09"]
[Round "6"]
[White "Leenhouts, Koen"]
[Black "Thogersen, Rasmus"]
[Result "1/2-1/2"]
[ECO "E81"]
[WhiteElo "2475"]
[BlackElo "2275"]
[Annotator "ChessBase"]
[PlyCount "108"]
[EventDate "2018.08.06"]
[EventType "swiss"]
[EventCountry "LAT"]
[SourceTitle "playchess.com"]
[Source "ChessBase"]
[SourceQuality "1"]
[TimeControl "5400+30"]

1. c4 g6 {[%emt 0:00:00]} 2. e4 {[%emt 0:00:28]} Bg7 {[%emt 0:01:15]} 3. d4 {[%emt 0:00:12]} d6 {[%emt 0:00:07]} 4. Nc3 {[%emt 0:00:08]} Nf6 {[%emt 0:00:05]} 5. f3 {[%emt 0:00:07]} O-O {[%emt 0:00:00]} 6. Bg5 {[%emt 0:00:29]} c5 {[%emt 0:00:00]} 7. d5 e6 8. Qd2 {[%emt 0:00:50]} exd5 {[%emt 0:00:41]} 9. cxd5 {[%emt 0:00:08]} a6 {[%emt 0:00:24]} 10. a4 {[%emt 0:00:53]} Nbd7 {[%emt 0:00:38]} 11. Nh3 {[%emt 0:00:32]} Qc7 {[%emt 0:08:19]} 12. Be2 {[%emt 0:01:25]} Rb8 {[%emt 0:05:11]} 13. O-O {[%emt 0:01:03]} c4 {[%emt 0:02:01]} 14. Rac1 {[%emt 0:07:52]} b5 {[%emt 0:02:50]} 15. axb5 {[%emt 0:01:50]} axb5 {[%emt 0:03:03]} 16. b4 {[%emt 0:00:26]} cxb3 {[%emt 0:06:03]} 17. Nxb5 {[%emt 0:06:32]} Qd8 {[%emt 0:03:04]} 18. Rc6 {[%emt 0:21:48]} Ne5 {[%emt 0:14:11]} 19. Rxd6 {[%emt 0:10:01]} Qe7 {[%emt 0:11:40]} 20. Nf2 {[%emt 0:13:53]} Bd7 {[%emt 0:01:04]} 21. Rxd7 {[%emt 0:17:00]} Qxd7 {[%emt 0:03:06]} 22. f4 {[%emt 0:03:52]} Neg4 23. e5 {[%emt 0:00:30]} Nxf2 {[%emt 0:12:31]} 24. exf6 {[%emt 0:00:03]} Ne4 {[%emt 0:00:34]} 25. Qd4 {[%emt 0:00:02]} Nxf6 {[%emt 0:01:18]} 26. Bxf6 {[%emt 0:00:07]} Bxf6 {[%emt 0:00:13]} 27. Qxf6 Rxb5 {[%emt 0:04:18]} 28. Bxb5 {[%emt 0:00:07]} Qxb5 {[%emt 0:00:10]} 29. Qd4 {[%emt 0:00:34]} Rc8 {[%emt 0:05:46]} 30. Rb1 {[%emt 0:05:03]} Rc2 {[%emt 0:07:30]} 31. Ra1 Qb7 {[%emt 0:03:15]} 32. Re1 {[%emt 0:01:55]} Qc8 {[%emt 0:02:09]} 33. Qa4 {[%emt 0:08:01]} Qc5+ {[%emt 0:02:58]} 34. Kh1 {[%emt 0:00:08]} Qxd5 {[%emt 0:00:50]} 35. Rg1 {[%emt 0:00:19]} h5 {[%emt 0:00:45]} 36. f5 {[%emt 0:00:09]} Rd2 {[%emt 0:01:11]} 37. fxg6 {[%emt 0:00:47]} fxg6 {[%emt 0:00:04]} 38. Qe8+ {[%emt 0:00:43]} Kg7 {[%emt 0:00:05]} 39. Qe7+ {[%emt 0:00:05]} Kh6 {[%emt 0:00:09]} 40. Qf8+ {[%emt 0:00:24]} Kh7 {[%emt 0:00:21]} 41. Qe7+ {[%emt 0:00:02]} Kg8 {[%emt 0:00:07]} 42. Qe8+ {[%emt 0:00:27]} Kg7 {[%emt 0:00:04]} 43. Qe7+ {[%emt 0:00:06]} Qf7 {[%emt 0:00:08]} 44. Qe5+ {[%emt 0:00:06]} Kh7 {[%emt 0:00:40]} 45. Qa5 {[%emt 0:01:07]} Qd7 {[%emt 0:00:33]} 46. Qb4 {[%emt 0:00:50]} b2 {[%emt 0:00:32]} 47. h3 Qd4 {[%emt 0:02:33]} 48. Qb7+ {[%emt 0:01:15]} Kh6 {[%emt 0:00:14]} 49. Qb8 {[%emt 0:00:45]} Qxg1+ {[%emt 0:01:01]} 50. Kxg1 {[%emt 0:00:02]} Rd1+ {[%emt 0:00:06]} 51. Kh2 {[%emt 0:00:13]} b1=Q {[%emt 0:00:10]} 52. Qf8+ Kh7 {[%emt 0:01:25]} 53. Qf7+ {[%emt 0:00:21]} Kh6 {[%emt 0:00:05]} 54. Qf8+ {[%emt 0:00:02]} Kh7 1/2-1/2

[Event "8th RTU Open 2018"]
[Site "Riga"]
[Date "2018.08.09"]
[Round "6"]
[White "Pultinevicius, Paulius"]
[Black "Esipenko, Andrey"]
[Result "1/2-1/2"]
[ECO "A18"]
[WhiteElo "2452"]
[BlackElo "2589"]
[Annotator "ChessBase"]
[PlyCount "52"]
[EventDate "2018.08.06"]
[EventType "swiss"]
[EventCountry "LAT"]
[SourceTitle "playchess.com"]
[Source "ChessBase"]
[SourceQuality "1"]
[TimeControl "5400+30"]

1. c4 {[%emt 0:00:00]} Nf6 {[%emt 0:00:00]} 2. Nc3 {[%emt 0:00:00]} e6 {[%emt 0:00:25]} 3. e4 {[%emt 0:00:00]} d5 {[%emt 0:00:07]} 4. e5 {[%emt 0:00:00]} d4 {[%emt 0:00:14]} 5. exf6 {[%emt 0:00:00]} dxc3 {[%emt 0:00:06]} 6. bxc3 {[%emt 0:00:00]} Qxf6 {[%emt 0:00:05]} 7. Nf3 {[%emt 0:01:39]} b6 {[%emt 0:00:43]} 8. d4 {[%emt 0:03:49]} Bb7 {[%emt 0:00:17]} 9. Bd3 {[%emt 0:00:12]} h6 {[%emt 0:14:00]} 10. O-O {[%emt 0:01:53]} Nd7 {[%emt 0:03:30]} 11. Re1 {[%emt 0:01:20]} Bd6 {[%emt 0:04:33]} 12. a4 {[%emt 0:08:36]} O-O {[%emt 0:03:02]} 13. Be4 {[%emt 0:10:33]} Bxe4 {[%emt 0:00:39]} 14. Rxe4 {[%emt 0:00:06]} Qf5 {[%emt 0:01:31]} 15. Re2 {[%emt 0:00:27]} Rfd8 {[%emt 0:07:24]} 16. a5 {[%emt 0:03:56]} c5 {[%emt 0:08:45]} 17. Be3 {[%emt 0:09:49]} cxd4 {[%emt 0:17:52]} 18. cxd4 {[%emt 0:01:33]} Bb4 {[%emt 0:00:47]} 19. axb6 {[%emt 0:04:47]} axb6 {[%emt 0:00:06]} 20. Rea2 {[%emt 0:02:08]} Qe4 {[%emt 0:05:27]} 21. Rxa8 {[%emt 0:04:38]} Rxa8 {[%emt 0:00:29]} 22. h3 {[%emt 0:01:15]} Bd6 {[%emt 0:04:27]} 23. Nd2 {[%emt 0:02:37]} Qc6 {[%emt 0:00:12]} 24. Rxa8+ {[%emt 0:00:35]} Qxa8 {[%emt 0:00:48]} 25. Qf3 {[%emt 0:04:24]} Qc8 {[%emt 0:00:34]} 26. Bf4 {[%emt 0:00:48]} Qc7 {[%emt 0:07:10]} 1/2-1/2

[Event "8th RTU Open 2018"]
[Site "Riga"]
[Date "2018.08.09"]
[Round "6"]
[White "Haria, Ravi"]
[Black "Dhulipalla, Bala Chandra Prasad"]
[Result "1-0"]
[ECO "A06"]
[WhiteElo "2449"]
[BlackElo "2333"]
[Annotator "NA"]
[PlyCount "117"]
[EventDate "2018.08.06"]
[EventType "swiss"]
[EventCountry "LAT"]
[SourceTitle "playchess.com"]
[Source "ChessBase"]
[SourceQuality "1"]
[TimeControl "5400+30"]

1. Nf3 {[%emt 0:01:02]} d5 {[%emt 0:02:08]} 2. g3 {[%emt 0:00:03]} Bg4 {[%emt 0:00:07]} 3. Bg2 {[%emt 0:00:23]} Nd7 {[%emt 0:00:08]} 4. h3 {[%emt 0:00:27]} Bh5 {[%emt 0:00:57]} 5. O-O {[%emt 0:02:04]} c6 {[%emt 0:00:32]} 6. d4 {[%emt 0:01:43]} e6 {[%emt 0:01:16]} 7. c4 {[%emt 0:00:08]} Ngf6 {[%emt 0:00:42]} 8. cxd5 {[%emt 0:00:15]} exd5 {[%emt 0:04:58]} 9. Qb3 {[%emt 0:00:07]} Bxf3 {[%emt 0:06:28]} 10. Bxf3 {[%emt 0:11:19]} Nb6 {[%emt 0:11:45]} 11. Nc3 {[%emt 0:03:44]} Be7 {[%emt 0:02:27]} 12. a4 {[%emt 0:00:37]} Rb8 {[%emt 0:11:03]} 13. a5 {[%emt 0:08:44]} Nc8 {[%emt 0:02:46]} 14. a6 {[%emt 0:00:46]} b5 {[%emt 0:03:30]} 15. e4 {[%emt 0:03:21]} dxe4 {[%emt 0:04:40]} 16. Nxe4 {[%emt 0:00:16]} Nd5 {[%emt 0:00:53]} 17. Nc3 {[%emt 0:14:38]} Ncb6 {[%emt 0:03:36]} 18. Nxd5 {[%emt 0:00:24]} Nxd5 {[%emt 0:00:08]} 19. Bxd5 {[%emt 0:01:03]} Qxd5 {[%emt 0:03:00]} 20. Qxd5 {[%emt 0:00:12]} cxd5 {[%emt 0:00:02]} 21. Bf4 {[%emt 0:00:19]} Rc8 {[%emt 0:01:16]} 22. Rfe1 {[%emt 0:04:17]} Kd7 {[%emt 0:00:50]} 23. Re5 {[%emt 0:01:38]} f6 {[%emt 0:02:49]} 24. Rxd5+ {[%emt 0:03:24]} Kc6 {[%emt 0:04:56]} 25. Rh5 {[%emt 0:00:06]} g5 {[%emt 0:07:57]} 26. Rc1+ {[%emt 0:02:07]} Kd7 {[%emt 0:01:51]} 27. Rxc8 {[%emt 0:00:19]} Rxc8 {[%emt 0:01:47]} 28. Be3 {[%emt 0:00:23]} Rc2 {[%emt 0:06:45]} 29. Rxh7 {[%emt 0:00:40]} Rxb2 {[%emt 0:01:32]} 30. d5 {[%emt 0:00:17]} Rc2 {[%emt 0:01:36]} 31. Bxa7 {[%emt 0:02:46]} Rc8 {[%emt 0:01:10]} 32. Bd4 {[%emt 0:11:00]} Kd6 {[%emt 0:00:04]} 33. a7 {[%emt 0:07:19]} b4 {[%emt 0:09:59]} 34. Rxe7 {[%emt 0:01:34]} Kxe7 {[%emt 0:00:02]} 35. Bc5+ {[%emt 0:00:06]} Kd7 {[%emt 0:00:03]} 36. Bxb4 {[%emt 0:00:06]} f5 {[%emt 0:00:32]} 37. Bd2 {[%emt 0:02:34]} Ra8 {[%emt 0:01:13]} 38. Bxg5 {[%emt 0:00:14]} Rxa7 {[%emt 0:00:02]} 39. Bf4 {[%emt 0:00:08]} Ra5 {[%emt 0:00:14]} 40. d6 {[%emt 0:00:05]} Ke6 {[%emt 0:00:21]} 41. Kg2 {[%emt 0:02:22]} Kf6 {[%emt 0:01:02]} 42. h4 {[%emt 0:01:23]} Kg6 {[%emt 0:00:20]} 43. Kf3 {[%emt 0:00:20]} Kh5 {[%emt 0:01:01]} 44. Bg5 {[%emt 0:03:57]} Rd5 {[%emt 0:00:18]} 45. Be7 {[%emt 0:00:29]} Kg6 {[%emt 0:00:36]} 46. Kf4 {[%emt 0:00:18]} Rd2 {[%emt 0:01:36]} 47. f3 {[%emt 0:02:30]} Rd5 {[%emt 0:00:32]} 48. g4 {[%emt 0:04:26]} fxg4 {[%emt 0:00:21]} 49. fxg4 {[%emt 0:00:09]} Rd1 {[%emt 0:00:20]} 50. h5+ {[%emt 0:00:30]} Kf7 {[%emt 0:00:10]} 51. Kg5 {[%emt 0:00:58]} Rd4 {[%emt 0:00:51]} 52. Kf5 {[%emt 0:01:56]} Rd5+ {[%emt 0:00:14]} 53. Ke4 {[%emt 0:01:18]} Rd1 {[%emt 0:00:18]} 54. Ke5 {[%emt 0:00:17]} Rh1 {[%emt 0:02:16]} 55. Bg5 {[%emt 0:00:23]} Rd1 {[%emt 0:00:49]} 56. Bf4 {[%emt 0:00:14]} Rh1 {[%emt 0:00:18]} 57. Kf5 {[%emt 0:00:09]} Rh3 {[%emt 0:00:36]} 58. h6 {[%emt 0:00:20]} Rb3 {[%emt 0:00:37]} 59. g5 {[%emt 0:00:18]} 1-0

[Event "8th RTU Open 2018"]
[Site "Riga"]
[Date "2018.08.09"]
[Round "6"]
[White "Berzinsh, Roland"]
[Black "Gorodetzky, Matan"]
[Result "1/2-1/2"]
[ECO "A40"]
[WhiteElo "2408"]
[BlackElo "2231"]
[Annotator "NA"]
[PlyCount "98"]
[EventDate "2018.08.06"]
[EventType "swiss"]
[EventCountry "LAT"]
[SourceTitle "playchess.com"]
[Source "ChessBase"]
[SourceQuality "1"]
[TimeControl "5400+30"]

1. d4 {[%emt 0:03:14]} e6 {[%emt 0:00:00]} 2. Nf3 {[%emt 0:02:41]} d5 {[%emt 0:00:06]} 3. Bf4 {[%emt 0:00:18]} Nf6 {[%emt 0:01:06]} 4. e3 {[%emt 0:00:08]} c5 {[%emt 0:00:35]} 5. Nbd2 {[%emt 0:00:12]} Nc6 {[%emt 0:00:11]} 6. c3 {[%emt 0:00:08]} cxd4 {[%emt 0:00:05]} 7. exd4 {[%emt 0:00:06]} Nh5 {[%emt 0:00:05]} 8. Bg5 {[%emt 0:00:09]} f6 {[%emt 0:00:50]} 9. Be3 {[%emt 0:00:09]} Bd6 {[%emt 0:03:26]} 10. Bb5 {[%emt 0:00:33]} O-O {[%emt 0:04:42]} 11. O-O {[%emt 0:00:33]} Qb6 {[%emt 0:09:19]} 12. c4 {[%emt 0:09:50]} Na5 {[%emt 0:15:22]} 13. b3 {[%emt 0:05:53]} g6 {[%emt 0:06:35]} 14. Rc1 {[%emt 0:10:53]} Ba3 {[%emt 0:13:48]} 15. Rc2 {[%emt 0:00:26]} Ng7 {[%emt 0:02:34]} 16. Nb1 {[%emt 0:00:49]} Be7 {[%emt 0:00:35]} 17. Nc3 {[%emt 0:15:51]} a6 {[%emt 0:03:18]} 18. c5 {[%emt 0:00:05]} Qd8 {[%emt 0:00:21]} 19. Be2 {[%emt 0:01:10]} Nc6 {[%emt 0:05:19]} 20. Na4 {[%emt 0:00:31]} Nf5 {[%emt 0:02:34]} 21. Bc1 {[%emt 0:04:56]} g5 {[%emt 0:04:11]} 22. Nb6 {[%emt 0:00:06]} Rb8 {[%emt 0:01:46]} 23. g4 {[%emt 0:00:48]} Nh6 {[%emt 0:00:29]} 24. Ne1 {[%emt 0:00:14]} f5 {[%emt 0:04:58]} 25. f3 {[%emt 0:03:44]} Nb4 {[%emt 0:03:21]} 26. Rb2 {[%emt 0:02:13]} e5 {[%emt 0:02:15]} 27. Be3 {[%emt 0:03:18]} fxg4 {[%emt 0:02:16]} 28. fxg4 {[%emt 0:00:14]} Rxf1+ {[%emt 0:01:13]} 29. Kxf1 {[%emt 0:00:04]} Be6 {[%emt 0:00:47]} 30. h3 {[%emt 0:06:18]} Qf8+ {[%emt 0:02:01]} 31. Kg2 {[%emt 0:00:08]} Nc6 {[%emt 0:01:06]} 32. Nf3 {[%emt 0:01:05]} Nf7 {[%emt 0:01:19]} 33. b4 {[%emt 0:05:26]} Qg7 {[%emt 0:00:36]} 34. dxe5 {[%emt 0:03:15]} Nfxe5 {[%emt 0:00:52]} 35. Nxe5 Nxe5 36. Bd4 {[%emt 0:02:08]} Bf6 {[%emt 0:00:56]} 37. Rd2 {[%emt 0:01:32]} Ng6 {[%emt 0:00:58]} 38. Be3 {[%emt 0:00:35]} d4 {[%emt 0:02:04]} 39. Bf2 {[%emt 0:08:10]} Nf4+ {[%emt 0:00:05]} 40. Kh2 {[%emt 0:00:04]} Be5 {[%emt 0:02:11]} 41. Bg3 {[%emt 0:00:07]} Rd8 {[%emt 0:01:01]} 42. Nc4 {[%emt 0:00:29]} h5 {[%emt 0:03:46]} 43. Nxe5 {[%emt 0:01:19]} Qxe5 44. gxh5 {[%emt 0:00:01]} Qe3 {[%emt 0:00:55]} 45. Bf3 {[%emt 0:00:59]} d3 {[%emt 0:00:58]} 46. Bf2 {[%emt 0:06:04]} Qe5 {[%emt 0:00:01]} 47. Bg3 {[%emt 0:00:01]} Qe3 {[%emt 0:00:03]} 48. Bf2 {[%emt 0:00:10]} Qe5 {[%emt 0:00:12]} 49. Bg3 {[%emt 0:00:05]} Qe3 1/2-1/2

[Event "8th RTU Open 2018"]
[Site "Riga"]
[Date "2018.08.09"]
[Round "6"]
[White "Bernotas, Arturs"]
[Black "Mierins, Eriks"]
[Result "1/2-1/2"]
[ECO "C44"]
[WhiteElo "2406"]
[BlackElo "2235"]
[Annotator "NA"]
[PlyCount "126"]
[EventDate "2018.08.06"]
[EventType "swiss"]
[EventCountry "LAT"]
[SourceTitle "playchess.com"]
[Source "ChessBase"]
[SourceQuality "1"]
[TimeControl "5400+30"]

1. e4 {[%emt 0:03:46]} e5 {[%emt 0:02:30]} 2. Nf3 {[%emt 0:00:10]} Nc6 {[%emt 0:00:04]} 3. d4 {[%emt 0:00:15]} exd4 {[%emt 0:00:05]} 4. Nxd4 {[%emt 0:00:08]} Nf6 {[%emt 0:00:05]} 5. Nxc6 {[%emt 0:00:10]} bxc6 {[%emt 0:00:07]} 6. Qe2 {[%emt 0:00:07]} Bb4+ {[%emt 0:06:07]} 7. c3 {[%emt 0:03:43]} Be7 {[%emt 0:03:50]} 8. e5 {[%emt 0:00:32]} Nd5 {[%emt 0:00:30]} 9. c4 {[%emt 0:01:38]} Nb6 {[%emt 0:00:32]} 10. Qg4 {[%emt 0:06:03]} Kf8 {[%emt 0:01:21]} 11. Be2 {[%emt 0:05:37]} d5 {[%emt 0:08:19]} 12. Qf4 {[%emt 0:03:10]} Nxc4 {[%emt 0:02:59]} 13. Bxc4 {[%emt 0:00:57]} dxc4 {[%emt 0:00:05]} 14. O-O {[%emt 0:00:53]} Be6 {[%emt 0:02:06]} 15. Nc3 {[%emt 0:00:46]} Qd3 {[%emt 0:06:20]} 16. Ne4 {[%emt 0:05:35]} h6 {[%emt 0:05:30]} 17. Bd2 {[%emt 0:24:43]} g5 {[%emt 0:00:46]} 18. Qe3 {[%emt 0:05:05]} Kg7 {[%emt 0:05:49]} 19. Qxd3 {[%emt 0:03:14]} cxd3 {[%emt 0:00:06]} 20. Rfc1 {[%emt 0:00:10]} Rab8 {[%emt 0:02:33]} 21. b3 {[%emt 0:03:26]} Bd5 {[%emt 0:02:20]} 22. Nc5 {[%emt 0:02:18]} Rhd8 {[%emt 0:01:48]} 23. Rc3 {[%emt 0:04:01]} Rb5 {[%emt 0:08:26]} 24. Rac1 {[%emt 0:03:13]} Ra5 {[%emt 0:03:22]} 25. Na4 {[%emt 0:05:06]} Ba3 {[%emt 0:31:34]} 26. Re1 {[%emt 0:02:12]} Ra6 {[%emt 0:03:13]} 27. Rxd3 {[%emt 0:00:38]} c5 {[%emt 0:00:46]} 28. Be3 {[%emt 0:03:06]} c6 {[%emt 0:00:40]} 29. h4 {[%emt 0:02:30]} Kg6 {[%emt 0:00:27]} 30. hxg5 {[%emt 0:01:48]} hxg5 {[%emt 0:00:18]} 31. Nxc5 {[%emt 0:02:12]} Bxc5 {[%emt 0:00:10]} 32. Bxc5 {[%emt 0:00:05]} Rxa2 {[%emt 0:00:08]} 33. Rg3 {[%emt 0:00:08]} Rg8 {[%emt 0:01:23]} 34. f4 {[%emt 0:01:16]} Kf5 {[%emt 0:00:19]} 35. fxg5 {[%emt 0:00:11]} Kf4 {[%emt 0:01:27]} 36. Bf2 {[%emt 0:04:48]} Rxg5 {[%emt 0:00:42]} 37. Rxg5 {[%emt 0:00:34]} Kxg5 {[%emt 0:00:02]} 38. b4 {[%emt 0:00:21]} Rb2 {[%emt 0:00:39]} 39. Ra1 {[%emt 0:00:47]} Rxb4 {[%emt 0:00:43]} 40. Rxa7 {[%emt 0:00:10]} Kf5 {[%emt 0:00:44]} 41. Re7 {[%emt 0:01:10]} Rg4 {[%emt 0:00:04]} 42. Kf1 {[%emt 0:01:19]} Bxg2+ {[%emt 0:00:27]} 43. Ke2 {[%emt 0:00:01]} Bd5 {[%emt 0:00:11]} 44. Kd3 {[%emt 0:00:14]} Ra4 {[%emt 0:00:46]} 45. Bd4 {[%emt 0:00:19]} Ra3+ {[%emt 0:00:54]} 46. Bc3 {[%emt 0:00:11]} c5 {[%emt 0:00:27]} 47. Rc7 {[%emt 0:00:22]} c4+ {[%emt 0:00:08]} 48. Kd4 {[%emt 0:00:03]} Be6 {[%emt 0:00:11]} 49. Rb7 {[%emt 0:00:12]} Ra8 {[%emt 0:00:08]} 50. Rb1 {[%emt 0:00:25]} Rd8+ {[%emt 0:00:13]} 51. Kc5 {[%emt 0:00:42]} Rd5+ {[%emt 0:00:30]} 52. Kb4 {[%emt 0:00:20]} Rd3 {[%emt 0:00:54]} 53. Rf1+ {[%emt 0:00:22]} Ke4 {[%emt 0:00:12]} 54. Re1+ {[%emt 0:00:15]} Kd5 {[%emt 0:00:40]} 55. Re2 {[%emt 0:00:14]} Rf3 {[%emt 0:00:49]} 56. Rd2+ {[%emt 0:00:15]} Rd3 {[%emt 0:00:17]} 57. Rxd3+ {[%emt 0:03:10]} cxd3 {[%emt 0:00:05]} 58. Kb3 {[%emt 0:00:07]} Ke4+ {[%emt 0:00:19]} 59. Kb2 {[%emt 0:00:11]} Ke3 {[%emt 0:01:16]} 60. Kc1 {[%emt 0:00:07]} Bb3 {[%emt 0:00:43]} 61. Ba5 {[%emt 0:00:14]} Bc2 {[%emt 0:00:23]} 62. Bb6+ {[%emt 0:00:15]} Ke4 {[%emt 0:01:12]} 63. Bc7 {[%emt 0:00:12]} Ke3 {[%emt 0:00:09]} 1/2-1/2

[Event "8th RTU Open 2018"]
[Site "Riga"]
[Date "2018.08.09"]
[Round "6"]
[White "Lagunow, Raphael"]
[Black "Hjelmaas, Lars"]
[Result "1-0"]
[ECO "C00"]
[WhiteElo "2404"]
[BlackElo "2271"]
[Annotator "NA"]
[PlyCount "61"]
[EventDate "2018.08.06"]
[EventType "swiss"]
[EventCountry "LAT"]
[SourceTitle "playchess.com"]
[Source "ChessBase"]
[SourceQuality "1"]
[TimeControl "5400+30"]

1. e4 {[%emt 0:07:29]} e6 {[%emt 0:00:19]} 2. b3 {[%emt 0:00:07]} c5 {[%emt 0:00:53]} 3. Bb2 {[%emt 0:00:20]} Nc6 {[%emt 0:00:36]} 4. Nf3 {[%emt 0:01:31]} d6 {[%emt 0:02:20]} 5. d4 {[%emt 0:02:33]} cxd4 {[%emt 0:06:45]} 6. Nxd4 {[%emt 0:00:21]} e5 {[%emt 0:01:15]} 7. Ne2 {[%emt 0:15:00]} Nf6 {[%emt 0:02:43]} 8. Nbc3 {[%emt 0:00:07]} Be7 {[%emt 0:06:55]} 9. g3 {[%emt 0:13:33]} h5 {[%emt 0:10:26]} 10. h3 {[%emt 0:01:16]} Nb4 {[%emt 0:04:45]} 11. a3 {[%emt 0:06:11]} Na6 {[%emt 0:00:47]} 12. Bg2 {[%emt 0:00:06]} Nc5 {[%emt 0:01:42]} 13. Qd2 {[%emt 0:01:42]} Be6 {[%emt 0:03:48]} 14. f4 {[%emt 0:06:56]} h4 {[%emt 0:06:04]} 15. g4 {[%emt 0:02:20]} Qb6 {[%emt 0:06:48]} 16. Rd1 {[%emt 0:05:53]} Bxg4 {[%emt 0:06:01]} 17. hxg4 {[%emt 0:02:18]} Nxb3 {[%emt 0:07:05]} 18. cxb3 {[%emt 0:15:28]} Nxg4 {[%emt 0:00:29]} 19. Nd4 {[%emt 0:03:45]} exd4 {[%emt 0:02:43]} 20. Nd5 {[%emt 0:00:49]} Qxb3 {[%emt 0:01:10]} 21. Rh3 {[%emt 0:00:14]} Ne3 {[%emt 0:01:31]} 22. Nxe3 {[%emt 0:06:47]} dxe3 {[%emt 0:00:09]} 23. Rxe3 {[%emt 0:00:01]} Qb5 {[%emt 0:01:41]} 24. Bh3 {[%emt 0:00:09]} Rh6 {[%emt 0:04:25]} 25. Qe2 {[%emt 0:01:11]} Qa5+ {[%emt 0:00:51]} 26. Bc3 {[%emt 0:00:23]} Qb6 {[%emt 0:00:17]} 27. Bxg7 {[%emt 0:01:51]} Rg6 {[%emt 0:00:15]} 28. Bd4 {[%emt 0:00:04]} Qa5+ {[%emt 0:00:55]} 29. Kf2 {[%emt 0:00:01]} f6 {[%emt 0:02:53]} 30. Bf5 {[%emt 0:00:35]} Rg8 {[%emt 0:00:48]} 31. Qh5+ {[%emt 0:00:25]} 1-0

[Event "8th RTU Open 2018"]
[Site "Riga"]
[Date "2018.08.09"]
[Round "6"]
[White "Pershin, Denis"]
[Black "Arnold, Max"]
[Result "1-0"]
[ECO "A45"]
[WhiteElo "2403"]
[BlackElo "2260"]
[Annotator "NA"]
[PlyCount "116"]
[EventDate "2018.08.06"]
[EventType "swiss"]
[EventCountry "LAT"]
[SourceTitle "playchess.com"]
[Source "ChessBase"]
[SourceQuality "1"]
[TimeControl "5400+30"]

1. d4 {[%emt 0:00:00]} Nf6 {[%emt 0:00:00]} 2. Nc3 {[%emt 0:00:00]} d5 {[%emt 0:00:00]} 3. Bf4 {[%emt 0:00:00]} c5 {[%emt 0:00:22]} 4. e3 {[%emt 0:00:32]} cxd4 {[%emt 0:00:12]} 5. exd4 {[%emt 0:00:03]} a6 {[%emt 0:00:24]} 6. Nf3 {[%emt 0:00:05]} Bg4 {[%emt 0:02:43]} 7. h3 {[%emt 0:00:06]} Bh5 {[%emt 0:00:57]} 8. g4 {[%emt 0:00:30]} Bg6 {[%emt 0:00:22]} 9. Ne5 {[%emt 0:00:07]} Ne4 {[%emt 0:05:49]} 10. Nxe4 {[%emt 0:02:21]} Bxe4 {[%emt 0:00:35]} 11. f3 {[%emt 0:00:18]} Bg6 {[%emt 0:00:46]} 12. h4 {[%emt 0:00:07]} f6 {[%emt 0:00:21]} 13. Nxg6 {[%emt 0:00:06]} hxg6 {[%emt 0:00:08]} 14. Bd3 {[%emt 0:00:13]} Kf7 {[%emt 0:02:06]} 15. h5 {[%emt 0:00:30]} gxh5 {[%emt 0:00:46]} 16. gxh5 {[%emt 0:00:04]} e6 {[%emt 0:03:53]} 17. Bg6+ {[%emt 0:01:03]} Ke7 {[%emt 0:01:30]} 18. Qe2 {[%emt 0:00:46]} Kd7 {[%emt 0:00:38]} 19. O-O-O {[%emt 0:00:09]} Bd6 {[%emt 0:01:56]} 20. Bxd6 {[%emt 0:00:07]} Kxd6 {[%emt 0:00:08]} 21. Rhe1 {[%emt 0:00:33]} Qd7 {[%emt 0:02:42]} 22. Qh2+ {[%emt 0:00:07]} Kc6 {[%emt 0:00:34]} 23. Re3 {[%emt 0:01:11]} Kb6 {[%emt 0:00:29]} 24. Rde1 {[%emt 0:00:26]} Nc6 {[%emt 0:00:37]} 25. Rxe6 {[%emt 0:00:07]} Rad8 {[%emt 0:01:40]} 26. Qe2 {[%emt 0:00:42]} Ka7 {[%emt 0:00:54]} 27. c3 {[%emt 0:05:29]} Qc8 {[%emt 0:06:37]} 28. Kb1 {[%emt 0:00:21]} Ka8 {[%emt 0:02:15]} 29. Qg2 {[%emt 0:03:15]} Qd7 {[%emt 0:07:54]} 30. Qg4 {[%emt 0:00:25]} Ka7 {[%emt 0:01:36]} 31. Be8 {[%emt 0:05:43]} Ne5 {[%emt 0:13:19]} 32. R1xe5 {[%emt 0:00:07]} Qc8 {[%emt 0:00:29]} 33. Re2 {[%emt 0:00:50]} Rdxe8 {[%emt 0:02:31]} 34. Re7 {[%emt 0:01:34]} Qc6 {[%emt 0:14:16]} 35. Qf5 {[%emt 0:01:29]} g6 {[%emt 0:06:24]} 36. Qxg6 {[%emt 0:01:29]} Reg8 {[%emt 0:00:40]} 37. Qf7 {[%emt 0:03:50]} Rf8 {[%emt 0:01:20]} 38. Qg6 {[%emt 0:00:06]} Rfg8 {[%emt 0:00:04]} 39. Qf5 {[%emt 0:00:08]} Rg5 {[%emt 0:03:35]} 40. Qd7 {[%emt 0:00:30]} Qxd7 {[%emt 0:07:24]} 41. Rxd7 {[%emt 0:00:05]} Rgxh5 {[%emt 0:01:04]} 42. Ree7 {[%emt 0:01:33]} Rb8 {[%emt 0:00:23]} 43. Rf7 {[%emt 0:00:34]} Rf5 {[%emt 0:00:34]} 44. Rd6 {[%emt 0:00:06]} Rxf3 {[%emt 0:00:12]} 45. Rxd5 {[%emt 0:00:09]} Rf2 {[%emt 0:02:44]} 46. a3 {[%emt 0:00:09]} Re2 {[%emt 0:03:26]} 47. Rdd7 {[%emt 0:00:15]} Re6 {[%emt 0:00:49]} 48. Ka2 {[%emt 0:02:15]} a5 {[%emt 0:01:45]} 49. Rd5 {[%emt 0:00:19]} a4 {[%emt 0:03:14]} 50. Ra5+ {[%emt 0:03:20]} Ra6 {[%emt 0:00:13]} 51. Rxa6+ {[%emt 0:00:12]} Kxa6 {[%emt 0:00:05]} 52. Rxf6+ {[%emt 0:00:05]} Kb5 {[%emt 0:01:01]} 53. Rf5+ {[%emt 0:00:08]} Kc6 {[%emt 0:00:46]} 54. Rc5+ {[%emt 0:00:29]} Kd6 {[%emt 0:00:08]} 55. Rb5 {[%emt 0:00:12]} Kc6 {[%emt 0:00:19]} 56. Rb4 {[%emt 0:00:10]} b5 {[%emt 0:00:13]} 57. c4 {[%emt 0:00:07]} Rd8 {[%emt 0:00:29]} 58. cxb5+ {[%emt 0:00:06]} Kd5 1-0